Workbook

Sheet Cuenta por cobrar
B1: MODELO DE COMO SE DEBE ENVIAR LAS CXC SENASA SUBSIDIADO
A2: Servicio Nacional de Salud
A3: Dirección de Fiscalización y Control
F4: SERVICIO REGIONAL SALUD ESTE
A5: Auxiliar Cuentas por Cobrar SeNaSa Subsidiado
A6: ESTABLECIMIENTO: CENTRO DE DIAGNOSTICOS del SRS-ESTE ENERO-JULIO | G6: 2025 | J6: BALANCE INICIAL | L6: 257,677.00
A7: DATOS PREVIO AL PROCESO | D7: DATOS DURANTE EL PROCESO | J7: DATOS POSTERIOR AL PROCESO
A8: FECHA DE CORTE AUDITORIA | B8: CANTIDAD DE EXPEDIENTES | C8: MONTO GENERAL DE FACTURACION | D8: FECHA DE AUDITORIA | E8: CANTIDAD EXPEDIENTES AUDITADAS | F8: MONTO AUDITADO | G8: MONTO GLOSADO | H8: % | I8: Valor Facturado | J8: Referencia Documento de pago (CK-T) | K8: Monto pagado | L8: Balance CxC
A9: 2025-01-25 | B9: 2913 | C9: 751,155.50 | D9: 2025-01-28 | E9: 2887 | F9: 751,155.50 | G9: 16,576.00 | H9: 2% | I9: =F9-G9 -> 734,579.50 | K9: 743,202.50 | L9: =L6+I9-K9 -> 249,054.00
A10: 2025-02-24 | B10: 2874 | C10: 642,837.00 | D10: 2025-02-28 | E10: 2873 | F10: 630,976.00 | G10: 10,432.00 | H10: 2% | I10: =F10-G10 -> 620,544.00 | K10: 620,544.00 | L10: =L9+I10-K10 -> 249,054.00
A11: 2025-03-26 | B11: 4237 | C11: 1,011,572.00 | D11: 2025-03-31 | E11: 4212 | F11: 1,011,572.00 | G11: 20,355.00 | H11: 2% | I11: =F11-G11 -> 991,217.00 | K11: 991,217.00 | L11: =L10+I11-K11 -> 249,054.00
A12: 2025-04-28 | B12: 2767 | C12: 641,934.00 | D12: 2025-04-30 | E12: 2759 | F12: 548,359.00 | G12: 15,022.00 | H12: 2% | I12: =F12-G12 -> 533,337.00 | K12: 533,337.00 | L12: =L11+I12-K12 -> 249,054.00
A13: 2025-05-28 | B13: 408599 | C13: 954,261.60 | D13: 2025-05-30 | E13: 1984 | F13: 866,462.60 | G13: 13,705.00 | H13: 2% | I13: 856,862.60 | K13: 856,862.60 | L13: =L12+I13-K13 -> 249,054.00
A14: 27/06/2025 | B14: 5310 | C14: 1,318,786.00 | D14: 2025-06-30 | E14: 5832 | F14: 1,318,786.00 | G14: 62,490.20 | H14: 1% | I14: 1,256,295.80 | K14: 1,256,295.80 | L14: =L13+I14-K14 -> 249,054.00
A15: 2025-07-28 | B15: 4292 | C15: 979,127.60 | D15: 2025-07-31 | E15: 4373 | F15: 930,360.60 | G15: 11,138.00 | H15: 2% | I15: 923,605.60 | K15: 923,605.60 | L15: =L14+I15-K15 -> 249,054.00
L16: =L15+I16-K16 -> 249,054.00
L17: =L16+I17-K17 -> 249,054.00
L18: =L17+I18-K18 -> 249,054.00
L19: =L18+I19-K19 -> 249,054.00
A20: TOTALES | B20: =SUM(B9:B19) -> 430,992.00 | C20: =SUM(C9:C19) -> 6,299,673.70 | E20: =SUM(E9:E19) -> 24,920.00 | F20: =SUM(F9:F19) -> 6,057,671.70 | G20: =SUM(G9:G19) -> 149,718.20 | I20: =SUM(I9:I19) -> 5,916,441.50 | K20: =SUM(K9:K19) -> 5,925,064.50
B22: Preparado por: | H22: Revisado por:
B24: LIC.IVELISSE SANTANA VICENTE | H24: LIC. YUDELKY JABALERA
C26: ___________________________________________
D27: DR. RICARDO JULIO ROMERO
D28: DIRECTOR
